fUST/lending_fUST_20250513
["ID","MTS","AMOUNT","RATE_DAILY","PERIOD"]
[360891201,1747115440689,-169.93630086,0.00017599,2]
[360891202,1747115440699,-83.06818818,0.00017599,2]
[360891206,1747115443652,-416.93181182,0.00017599,2]
[360891207,1747115443662,-500.0,0.00017599,2]
[360891208,1747115443672,-500.0,0.00017599,2]
[360891209,1747115443682,-500.0,0.00017599,2]
[360891210,1747115443691,-500.0,0.00017599,2]
[360891211,1747115443700,-500.0,0.00017599,2]
[360891212,1747115443711,-500.0,0.00017599,2]
[360891213,1747115443721,-500.0,0.00017599,2]
[360891214,1747115443730,-12625.42653527,0.000176,3]
[360891215,1747115443740,-997.88380159,0.000176,3]
[360891216,1747115443750,-160.0,0.000176,3]
[360891217,1747115443762,-314.27581824,0.000176,3]
[360891218,1747115443773,-212.19047112,0.000176,3]
[360891219,1747115443784,-5828.80457458,0.00017624,2]
[360891220,1747115443794,-1001.04868399,0.0001768,2]
[360891221,1747115443804,-2000.00083938,0.00017758,2]
[360891222,1747115443814,-151.0,0.00017758,2]
[360891223,1747115443826,-420.0,0.00017845,2]
[360891224,1747115443836,-194.44125814,0.00017865,2]
[360891225,1747115443846,-5828.80457458,0.00017866,2]
[360891226,1747115443857,-153.887627,0.00017879,7]
[360891227,1747115443867,-5887.7765029,0.00018,2]
[360891228,1747115443878,-2200.69798385,0.00018,2]
[360891229,1747115443888,-4000.0,0.00018,2]
[360891230,1747115443899,-6445.05760159,0.00018,2]
[360891231,1747115443909,-853.04,0.00018,2]
[360891232,1747115443920,-151.0,0.00018,2]
[360891233,1747115443930,-151.0,0.00018,2]
[360891234,1747115443942,-269.029311,0.00018,2]
[360891235,1747115443953,-151.0,0.00018,2]
[360891236,1747115443963,-151.0,0.00018,2]
[360891237,1747115443973,-151.0,0.00018,2]
[360891238,1747115443983,-1039.286406,0.00018,2]
[360891239,1747115443994,-1039.286406,0.00018,2]
[360891240,1747115444004,-151.57308,0.00018,2]
[360891241,1747115444015,-842.445481,0.00018,2]
[360891242,1747115444025,-842.445481,0.00018,2]
[360891243,1747115444035,-1516.87712675,0.00018064,2]
[360891244,1747115444044,-5828.80457458,0.00018107,2]
[360891245,1747115444054,-700.0,0.00018164,2]
[360891246,1747115444064,-151.0,0.000182,2]
[360891247,1747115444073,-151.0,0.000182,2]
[360891248,1747115444084,-153.001211,0.00018313,2]
[360891249,1747115444094,-255.94751848,0.00018313,3]
[360891250,1747115444112,-5000.0,0.00018313,2]
[360891251,1747115444127,-1516.87712671,0.00018317,2]
[360891252,1747115444137,-160.0,0.00018347,2]
[360891253,1747115444147,-151.0,0.00018348,2]
[360891254,1747115444160,-151.0,0.00018348,2]
[360891255,1747115444170,-151.0,0.00018348,2]
[360891256,1747115444181,-151.0,0.00018348,2]
[360891257,1747115444190,-151.0,0.00018348,2]
[360891258,1747115444200,-151.0,0.00018348,2]
[360891259,1747115444211,-151.0,0.00018348,2]
[360891260,1747115444222,-151.0,0.00018348,2]
[360891261,1747115444234,-5828.80457458,0.00018348,2]
[360891262,1747115444244,-160.0,0.00018366,2]
[360891263,1747115444255,-160.0,0.00018366,2]
[360891264,1747115444268,-314.27581824,0.00018366,2]
[360891265,1747115444278,-151.0,0.000184,2]
[360891266,1747115444288,-151.0,0.000184,2]
[360891267,1747115444300,-1001.04868399,0.00018461,2]
[360891268,1747115444309,-151.0,0.000185,2]
[360891269,1747115444319,-151.0,0.000185,2]
[360891270,1747115444330,-132710.84457161,0.000185,6]
[360891272,1747115446519,-5000.0,0.00017423,2]
[360891273,1747115446530,-2793.69680333,0.000185,6]
[360891274,1747115446579,-253.9710398,0.000185,6]
[360891275,1747115446648,-436.73,0.000185,6]
[360891310,1747116438182,-4995.6818902,0.00013426,2]
[360891311,1747116439122,-4.3181098,0.00013426,2]
[360891312,1747116439145,-398.11210639,0.00013562,2]
[360891313,1747116441086,-101.88789361,0.00013562,2]
[360891314,1747116441109,-282.77795945,0.00013562,2]
[360891315,1747116441132,-344.28413,0.00013699,2]
[360891316,1747116441154,-215.772639,0.0001564,2]
[360891317,1747116441176,-500.0,0.00015698,2]
[360891318,1747116441198,-337.11,0.000159,2]
[360891319,1747116441223,-847.24306749,0.000159,2]
[360891320,1747116441258,-326.61243968,0.000159,2]
[360891323,1747116534253,-152.459,0.00015741,2]
[360891352,1747116632580,-500.0,0.00015698,2]
[360891354,1747116632590,-243.53714884,0.00015736,2]
[360891356,1747116632600,-303.4,0.000159,2]
[360891357,1747116632610,-150.0,0.00016,2]
[360891359,1747116632619,-1000.0,0.00016088,2]
[360891361,1747116632630,-2529.5430669,0.00016089,2]
[360891363,1747116632640,-490.99670928,0.00016527,5]
[360891365,1747116632649,-405.563,0.00016533,2]
[360891367,1747116632659,-501.30685635,0.0001656,2]
[360891369,1747116632668,-315.12776554,0.00016759,2]
[360891371,1747116632679,-5000.0,0.0001676,2]
[360891373,1747116632688,-4441.41357017,0.000169,2]
[360891375,1747116632698,-500.0,0.00017068,2]
[360891377,1747116632708,-4441.41356989,0.00017176,2]
[360891378,1747116632718,-5000.0,0.00017385,2]
[360891380,1747116632728,-1182.51862562,0.00017452,2]
[360891387,1747116632915,-3258.89494427,0.00017452,2]
[360891388,1747116632926,-4441.41356989,0.00017728,2]
[360891389,1747116632935,-617.89055378,0.00017826,2]
[360891390,1747116632945,-500.0,0.00017826,2]
[360891391,1747116632954,-500.0,0.00017826,2]
[360891392,1747116632964,-500.0,0.00017826,2]
[360891393,1747116632973,-500.0,0.00017826,2]
[360891394,1747116632983,-500.0,0.00017826,2]
[360891395,1747116632992,-500.0,0.00017826,2]
[360891396,1747116633001,-500.0,0.00017826,2]
[360891397,1747116633011,-500.0,0.00017826,2]
[360891398,1747116633025,-500.0,0.00017826,2]
[360891399,1747116633035,-882.82710578,0.00018,9]
[360891400,1747116633045,-4441.41356989,0.00018003,2]
[360891401,1747116633054,-5000.0,0.0001801,2]
[360891402,1747116633065,-500.0,0.00018164,2]
[360891403,1747116633075,-4441.41356989,0.00018279,2]
[360891404,1747116633084,-160.0,0.0001839,2]
[360891405,1747116633095,-160.0,0.0001839,2]
[360891406,1747116633104,-203.46660987,0.000184,4]
[360891407,1747116633114,-445.2439616,0.00018407,2]
[360891408,1747116633124,-501.0,0.00018413,7]
[360891409,1747116633134,-152.0,0.000185,2]
[360891410,1747116633144,-152.0,0.000185,2]
[360891411,1747116633154,-152.0,0.000185,2]
[360891412,1747116633164,-152.0,0.000185,2]
[360891413,1747116633173,-152.0,0.000185,2]
[360891414,1747116633183,-152.0,0.000185,2]
[360891415,1747116633193,-152.0,0.000185,2]
[360891416,1747116633203,-152.0,0.000185,2]
[360891417,1747116633212,-152.0,0.000185,2]
[360891418,1747116633227,-152.0,0.000185,2]
[360891419,1747116633244,-152.0,0.000185,2]
[360891420,1747116633262,-152.0,0.000185,2]
[360891421,1747116633276,-152.0,0.000185,2]
[360891422,1747116633290,-152.0,0.000185,2]
[360891423,1747116633306,-152.0,0.000185,2]
[360891424,1747116633320,-152.0,0.000185,2]
[360891425,1747116633338,-152.0,0.000185,2]
[360891426,1747116633353,-152.0,0.000185,2]
[360891427,1747116633368,-152.0,0.000185,2]
[360891428,1747116633385,-152.0,0.000185,2]
[360891429,1747116633399,-152.0,0.000185,2]
[360891430,1747116633414,-152.0,0.000185,2]
[360891431,1747116633428,-152.0,0.000185,2]
[360891432,1747116633444,-152.0,0.000185,2]
[360891433,1747116633458,-152.0,0.000185,2]
[360891434,1747116633472,-152.0,0.000185,2]
[360891435,1747116633484,-152.0,0.000185,2]
[360891436,1747116633498,-152.0,0.000185,2]
[360891437,1747116633511,-152.0,0.000185,2]
[360891438,1747116633526,-220.30925362,0.000185,2]
[360891439,1747116633541,-4441.41356989,0.00018555,2]
[360891440,1747116633557,-268.117,0.0001859,2]
[360891441,1747116633573,-5000.0,0.00018635,2]
[360891442,1747116633590,-11458.59629169,0.00018699,6]
[360891446,1747116638524,-2751.92501675,0.00015541,2]
[360891448,1747116638539,-379.50160881,0.00015541,2]
[360891472,1747116646594,-1868.57337444,0.00015541,2]
[360891473,1747116646604,-500.0,0.00016759,2]
[360891474,1747116646614,-500.0,0.00017826,2]
[360891475,1747116646623,-166.84961567,0.00017826,2]
[360891476,1747116646634,-500.0,0.00017826,2]
[360891477,1747116646643,-417.066,0.00018413,7]
[360891478,1747116646653,-184168.32370831,0.00018699,6]
[360891479,1747116646662,-151.0,0.000187,2]
[360891480,1747116646672,-151.0,0.000187,2]
[360891481,1747116646682,-163.38845431,0.00018723,7]
[360891482,1747116646691,-3991.93781487,0.00018772,6]
[360891483,1747116646723,-5121.00000006,0.00018772,6]
[360891486,1747116696528,151.76095959,0.0002,120]
[360891487,1747116713703,152.16784304,0.0002,120]
[360891497,1747117630110,-5000.0,0.00013292,2]
[360891498,1747117630129,-345.154646,0.00013699,2]
[360891499,1747117630147,-1000.0,0.00014247,2]
[360891500,1747117630166,-1200.0,0.00014499,2]
[360891501,1747117630185,-300.0,0.00014499,2]
[360891502,1747117630201,-189.0,0.00014499,2]
[360891503,1747117630220,-3837.18316942,0.000145,2]
[360891504,1747117634101,-2931.18345549,0.000145,2]
[360891505,1747117634126,-285.54886841,0.00014899,2]
[360891506,1747117640131,-1254.2782373,0.00014355,2]
[360891507,1747117641183,-3745.7217627,0.00014355,2]
[360891508,1747117641205,-214.45113159,0.00014899,2]
[360891509,1747117641228,-184.84524594,0.00014899,2]
[360891510,1747117641305,-254.36804391,0.00014899,2]
[360891575,1747117831875,-5000.0,0.0001475,2]
[360891577,1747117831885,-1000.0,0.000148,2]
[360891579,1747117831894,-300.0,0.00014897,2]
[360891580,1747117831903,-300.0,0.00014897,2]
[360891581,1747117831915,-300.0,0.00014897,2]
[360891582,1747117831925,-298.327,0.00015,2]
[360891583,1747117831936,-500.0,0.00015698,2]
[360891584,1747117831945,-3405.08373708,0.000159,2]
[360891585,1747117831955,-273.06,0.00016,2]
[360891586,1747117831965,-178.2662318,0.00016062,2]
[360891587,1747117831974,-702.054696,0.0001609,2]
[360891588,1747117831984,-3405.08373691,0.00016176,2]
[360891589,1747117831993,-420.0,0.00016306,2]
[360891590,1747117832003,-801.12459821,0.00016358,2]
[360891591,1747117832014,-379.42100616,0.00016358,2]
[360891601,1747117839976,-339.28498889,0.00014748,2]
[360891605,1747117842891,-466.97849724,0.00014748,2]
[360891625,1747118048242,6677.0,0.0002,120]
[360891627,1747118559432,-288.16200006,0.00013426,2]
[360891628,1747118574717,1855.77,0.0002,120]
[360891632,1747118825121,-5000.0,0.0001287,2]
[360891633,1747118825143,-300.0,0.00012999,2]
[360891634,1747118825165,-2684.78662255,0.00013,2]
[360891635,1747118834095,-1950.63276491,0.00013,2]
[360891636,1747118836131,-5000.0,0.0001287,2]
[360891637,1747118836153,-1396.4838196,0.00013,2]
[360891638,1747118836174,-1200.0,0.00013291,2]
[360891639,1747118836195,-300.0,0.00013291,2]
[360891640,1747118836214,-346.024113,0.00013699,2]
[360891641,1747118836234,-462.72621452,0.00013899,2]
[360891642,1747118847099,-37.27378548,0.00013899,2]
[360891643,1747118847124,-149.86482237,0.00013899,2]
[360891653,1747119012460,-2147.99120507,0.0001366,2]
[360891654,1747119012482,-2973.00879493,0.0001376,2]
[360891690,1747119032199,-2026.99120507,0.0001376,2]
[360891691,1747119032210,-300.0,0.00013897,2]
[360891692,1747119032219,-500.0,0.00013898,2]
[360891693,1747119032229,-500.0,0.00013898,2]
[360891694,1747119032467,-500.0,0.00013898,2]
[360891695,1747119032477,-164.38433932,0.00013898,2]
[360891696,1747119032487,-435.96876305,0.00013898,2]
[360891697,1747119032496,-500.0,0.00013898,2]
[360891698,1747119032506,-500.0,0.00013898,2]
[360891699,1747119032515,-500.0,0.00013898,2]
[360891700,1747119032524,-311.19637906,0.00013898,2]
[360891701,1747119032534,-500.0,0.00013898,2]
[360891702,1747119032544,-325.69186842,0.00013898,2]
[360891703,1747119032554,-500.0,0.00013898,2]
[360891704,1747119032563,-500.0,0.00013898,2]
[360891705,1747119032572,-500.0,0.00013898,2]
[360891706,1747119032581,-500.0,0.00013898,2]
[360891707,1747119032590,-224.67590968,0.00013898,2]
[360891708,1747119032603,-275.32409032,0.00013898,2]
[360891709,1747119032621,-604.38391184,0.00013898,2]
[360891710,1747119032630,-500.0,0.00013898,2]
[360891711,1747119032639,-500.0,0.00013898,2]
[360891712,1747119032649,-500.0,0.00013898,2]
[360891713,1747119032658,-500.0,0.00013898,2]
[360891714,1747119032668,-500.0,0.00013898,2]
[360891715,1747119032678,-500.0,0.00013898,2]
[360891716,1747119032687,-500.0,0.00013898,2]
[360891717,1747119032697,-500.0,0.00013898,2]
[360891718,1747119032706,-500.0,0.00013898,2]
[360891719,1747119032715,-500.0,0.00013898,2]
[360891720,1747119032725,-500.0,0.00013898,2]
[360891721,1747119032734,-500.0,0.00013898,2]
[360891722,1747119032743,-500.0,0.00013898,2]
[360891723,1747119032753,-250.0,0.00013898,2]
[360891724,1747119032762,-1000.0,0.00014247,2]
[360891725,1747119032772,-5752.57211784,0.00014448,2]
[360891726,1747119033076,-732.21182256,0.00014448,2]
[360891727,1747119033099,-701.1101116,0.00014835,2]
[360891728,1747119033124,-3178.07815472,0.000149,2]
[360891731,1747119038026,-215.772638,0.00015011,2]
[360891732,1747119038035,-654.27121146,0.0001521,2]
[360891734,1747119038293,3182.29991112,0.00015,2]
[360891744,1747119043216,-1817.70008888,0.00015,2]
[360891745,1747119043226,-2523.80694298,0.0001521,2]
[360891746,1747119043235,-420.0,0.00015227,2]
[360891747,1747119043244,-3178.07815444,0.00015521,2]
[360891749,1747119043254,-251.93848285,0.00015643,2]
[360891750,1747119043264,-500.0,0.00015698,2]
[360891751,1747119043273,-3178.07815444,0.00015831,2]
[360891752,1747119043283,-701.11011154,0.00015872,2]
[360891753,1747119043292,-2000.0,0.0001589,2]
[360891754,1747119043302,-207.4,0.0001592,2]
[360891755,1747119043311,-1062.8745048,0.00015967,2]
[360891756,1747119043320,-3178.07815444,0.00016141,2]
[360891757,1747119043330,-244.985,0.00016279,2]
[360891758,1747119043339,-287.37,0.000163,2]
[360891759,1747119043348,-3178.07815444,0.00016452,2]
[360891760,1747119043358,-587.0,0.00016683,2]
[360891761,1747119043367,-3178.07815444,0.00016762,2]
[360891762,1747119043376,-701.11011154,0.00016908,2]
[360891763,1747119043386,-500.0,0.00017068,2]
[360891764,1747119043395,-3178.07815444,0.00017072,2]
[360891765,1747119043404,-250.0,0.00017292,2]
[360891766,1747119043413,-3178.07815444,0.00017383,2]
[360891767,1747119043422,-2000.11302134,0.00017534,2]
[360891768,1747119043432,-174.0717756,0.00017534,2]
[360891769,1747119043441,-3178.07815444,0.00017693,2]
[360891770,1747119043450,-701.11011154,0.00017945,2]
[360891771,1747119043460,-2000.0,0.00018,2]
[360891772,1747119043469,-37178.42658932,0.00018,2]
[360891773,1747119043478,-4021.0153513,0.00018,2]
[360891774,1747119043488,-3178.07815444,0.00018003,2]
[360891775,1747119043497,-500.0,0.00018164,2]
[360891776,1747119043506,-153.0,0.00018217,2]
[360891777,1747119043515,-153.0,0.00018217,2]
[360891778,1747119043524,-153.5621667,0.00018217,2]
[360891779,1747119043534,-424.4,0.0001827,7]
[360891780,1747119043543,-823.0,0.00018279,2]
[360891781,1747119043552,-1842.70930459,0.00018299,2]
[360891782,1747119043561,-142318.32,0.00018306,6]
[360891783,1747119043571,-3178.07815444,0.00018314,2]
[360891784,1747119043580,-160.0,0.00018399,2]
[360891785,1747119043589,-160.0,0.00018399,2]
[360891786,1747119043599,-1842.70930457,0.00018494,2]
[360891787,1747119043608,-156.0,0.000185,2]
[360891788,1747119043618,-400.7195654,0.00018606,2]
[360891789,1747119043627,-3178.07815444,0.00018624,2]
[360891790,1747119043637,-1842.70930457,0.00018688,2]
[360891791,1747119043646,-224.88,0.0001879,3]
[360891792,1747119043656,-674.66,0.0001879,3]
[360891793,1747119043666,-160.0,0.00018799,2]
[360891794,1747119043675,-500.0,0.00018799,2]
[360891795,1747119043685,-160.78285354,0.00018799,2]
[360891796,1747119043695,-160.0,0.00018799,2]
[360891797,1747119043704,-160.39357928,0.00018799,2]
[360891798,1747119043714,-50036.0,0.000188,2]
[360891799,1747119043724,-270.979252,0.000188,2]
[360891800,1747119043734,-153.927477,0.000188,2]
[360891801,1747119043743,-151.0,0.000188,2]
[360891802,1747119043753,-151.0,0.000188,2]
[360891803,1747119043763,-151.0,0.000188,2]
[360891804,1747119043773,-151.0,0.000188,2]
[360891805,1747119043783,-788.67241,0.000188,2]
[360891806,1747119043793,-788.67241,0.000188,2]
[360891807,1747119043802,-151.0,0.000188,2]
[360891808,1747119043812,-151.0,0.000188,2]
[360891809,1747119043822,-151.0,0.000188,2]
[360891810,1747119043831,-180.734226,0.000188,2]
[360891811,1747119043840,-151.0,0.000188,2]
[360891812,1747119043850,-151.0,0.000188,2]
[360891813,1747119043859,-151.0,0.000188,2]
[360891814,1747119043869,-151.0,0.000188,2]
[360891815,1747119043878,-935.357766,0.000188,2]
[360891816,1747119043888,-151.0,0.000188,2]
[360891817,1747119043898,-935.357766,0.000188,2]
[360891818,1747119043907,-420.561592,0.000188,2]
[360891819,1747119043917,-420.561592,0.000188,2]
[360891820,1747119043926,-157.51116,0.000188,2]
[360891821,1747119043936,-151.0,0.000188,2]
[360891822,1747119043946,-152.202462,0.000188,2]
[360891823,1747119043955,-151.0,0.000188,2]
[360891824,1747119043965,-197.928176,0.000188,2]
[360891825,1747119043975,-218.71077,0.000188,2]
[360891826,1747119043988,-218.71077,0.000188,2]
[360891827,1747119043998,-758.200933,0.000188,2]
[360891828,1747119044007,-758.200933,0.000188,2]
[360891829,1747119044017,-151.0,0.000188,2]
[360891830,1747119044026,-151.0,0.000188,2]
[360891831,1747119044036,-152.684419,0.000188,2]
[360891832,1747119044045,-151.0,0.000188,2]
[360891833,1747119044054,-151.0,0.000188,2]
[360891834,1747119044064,-298.899104,0.000188,2]
[360891835,1747119044074,-152.171628,0.000188,2]
[360891836,1747119044083,-160.0,0.00018863,2]
[360891837,1747119044092,-160.0,0.00018863,2]
[360891838,1747119044102,-160.0,0.00018863,2]
[360891839,1747119044111,-212.17074216,0.00018863,2]
[360891840,1747119044120,-160.0,0.00018863,2]
[360891841,1747119044129,-997.78101552,0.00018863,2]
[360891842,1747119044139,-160.0,0.00018863,2]
[360891843,1747119044149,-12623.54026388,0.00018863,2]
[360891844,1747119044158,-160.0,0.00018863,2]
[360891845,1747119044167,-422.20096692,0.00018863,2]
[360891846,1747119044176,-160.0,0.00018863,2]
[360891847,1747119044186,-160.0,0.00018863,2]
[360891848,1747119044196,-160.0,0.00018864,2]
[360891849,1747119044205,-500.0,0.00018869,2]
[360891850,1747119044215,-295.92523151,0.00018875,2]
[360891851,1747119044224,-1842.70930457,0.00018883,2]
[360891852,1747119044234,-1188.3803086,0.00018899,6]
[360891853,1747119044244,-151.0,0.000189,2]
[360891854,1747119044253,-1088.88544904,0.000189,2]
[360891855,1747119044263,-3178.07815444,0.00018934,2]
[360891856,1747119044273,-151.0,0.00018935,2]
[360891857,1747119044283,-218.71077,0.00018935,2]
[360891858,1747119044292,-218.71077,0.00018935,2]
[360891859,1747119044302,-758.200933,0.00018935,2]
[360891860,1747119044311,-758.200933,0.00018935,2]
[360891861,1747119044321,-151.0,0.00018935,2]
[360891862,1747119044330,-151.0,0.00018935,2]
[360891863,1747119044340,-151.0,0.00018935,2]
[360891864,1747119044350,-151.0,0.00018935,2]
[360891865,1747119044360,-701.11011154,0.00018981,2]
[360891866,1747119044370,-151.0,0.00018999,2]
[360891867,1747119044380,-151.0,0.00018999,2]
[360891868,1747119044390,-151.0,0.00018999,2]
[360891869,1747119044399,-151.0,0.00018999,2]
[360891870,1747119044410,-151.0,0.00018999,2]
[360891871,1747119044419,-151.0,0.00018999,2]
[360891872,1747119044429,-502.06979714,0.00018999,2]
[360891873,1747119044439,-85000.0,0.00019,2]
[360891874,1747119044449,-40000.0,0.00019,2]
[360891875,1747119044458,-1000.0,0.00019,19]
[360891876,1747119044468,-151.0,0.00019,2]
[360891877,1747119044478,-151.0,0.00019,2]
[360891878,1747119044487,-151.0,0.00019,2]
[360891879,1747119044497,-151.0,0.00019,2]
[360891880,1747119044507,-151.0,0.00019,2]
[360891881,1747119044516,-151.0,0.00019,2]
[360891882,1747119044526,-151.0,0.00019,2]
[360891883,1747119044535,-151.0,0.00019,2]
[360891884,1747119044545,-151.0,0.00019,2]
[360891885,1747119044555,-151.0,0.00019,2]
[360891886,1747119044564,-151.0,0.00019,2]
[360891887,1747119044574,-151.0,0.00019,2]
[360891888,1747119044584,-151.0,0.00019,2]
[360891889,1747119044593,-151.0,0.00019,2]
[360891890,1747119044603,-151.0,0.00019,2]
[360891891,1747119044612,-151.0,0.00019,2]
[360891892,1747119044621,-151.0,0.00019,2]
[360891893,1747119044630,-151.0,0.00019,2]
[360891894,1747119044639,-290.0,0.00019,2]
[360891895,1747119044648,-151.0,0.00019,2]
[360891896,1747119044658,-151.0,0.00019,2]
[360891897,1747119044667,-151.0,0.00019,2]
[360891898,1747119044677,-151.0,0.00019,2]
[360891899,1747119044686,-151.0,0.00019,2]
[360891900,1747119044696,-151.0,0.00019,2]
[360891901,1747119044705,-151.0,0.00019,2]
[360891902,1747119044714,-151.0,0.00019,2]
[360891903,1747119044724,-151.0,0.00019,2]
[360891904,1747119044733,-151.0,0.00019,2]
[360891905,1747119044742,-151.0,0.00019,2]
[360891906,1747119044752,-151.0,0.00019,2]
[360891907,1747119044761,-151.0,0.00019,2]
[360891908,1747119044771,-151.0,0.00019,2]
[360891909,1747119044780,-151.0,0.00019,2]
[360891910,1747119044790,-151.0,0.00019,2]
[360891911,1747119044799,-152.68051,0.00019,2]
[360891912,1747119044808,-156.735605,0.00019,2]
[360891913,1747119044819,-788.67241,0.00019,2]
[360891914,1747119044829,-788.67241,0.00019,2]
[360891915,1747119044839,-788.67241,0.00019,2]
[360891916,1747119044848,-788.67241,0.00019,2]
[360891917,1747119044858,-151.390649,0.00019,2]
[360891918,1747119044868,-151.0,0.00019,2]
[360891919,1747119044877,-151.0,0.00019,2]
[360891920,1747119044887,-151.0,0.00019,2]
[360891921,1747119044896,-151.0,0.00019,2]
[360891922,1747119044906,-151.0,0.00019,2]
[360891923,1747119044915,-151.0,0.00019,2]
[360891924,1747119044925,-151.0,0.00019,2]
[360891925,1747119044934,-151.0,0.00019,2]
[360891926,1747119044944,-151.0,0.00019,2]
[360891927,1747119044953,-151.0,0.00019,2]
[360891928,1747119044963,-151.0,0.00019,2]
[360891929,1747119044972,-935.357766,0.00019,2]
[360891930,1747119044982,-935.357766,0.00019,2]
[360891931,1747119044995,-935.357766,0.00019,2]
[360891932,1747119045005,-935.357766,0.00019,2]
[360891933,1747119045014,-420.561592,0.00019,2]
[360891934,1747119045024,-420.561592,0.00019,2]
[360891935,1747119045035,-420.561592,0.00019,2]
[360891936,1747119045044,-420.561592,0.00019,2]
[360891937,1747119045054,-151.0,0.00019,2]
[360891938,1747119045066,-151.0,0.00019,2]
[360891939,1747119045076,-151.0,0.00019,2]
[360891940,1747119045086,-151.0,0.00019,2]
[360891941,1747119045096,-151.0,0.00019,2]
[360891942,1747119045106,-218.71077,0.00019,2]
[360891943,1747119045115,-218.71077,0.00019,2]
[360891944,1747119045125,-218.71077,0.00019,2]
[360891945,1747119045135,-218.71077,0.00019,2]
[360891946,1747119045145,-758.200933,0.00019,2]
[360891947,1747119045155,-758.200933,0.00019,2]
[360891948,1747119045165,-758.200933,0.00019,2]
[360891949,1747119045175,-758.200933,0.00019,2]
[360891950,1747119045185,-151.0,0.00019,2]
[360891951,1747119045195,-151.0,0.00019,2]
[360891952,1747119045205,-151.0,0.00019,2]
[360891953,1747119045215,-151.0,0.00019,2]
[360891954,1747119045224,-151.0,0.00019,2]
[360891955,1747119045234,-151.0,0.00019,2]
[360891956,1747119045244,-1195.0,0.00019018,7]
[360891957,1747119045259,-39706.52784027,0.00019077,2]
[360891958,1747119045270,-151.0,0.00019077,2]
[360891959,1747119045281,-151.0,0.00019077,2]
[360891960,1747119045292,-420.561592,0.00019077,2]
[360891961,1747119045303,-420.561592,0.00019077,2]
[360891962,1747119045316,-165.34969198,0.00019077,2]
[360891963,1747119045326,-151.0,0.00019077,2]
[360891964,1747119045337,-151.0,0.00019077,2]
[360891965,1747119045348,-218.71077,0.00019077,2]
[360891966,1747119045359,-218.71077,0.00019077,2]
[360891967,1747119045370,-758.200933,0.00019077,2]
[360891968,1747119045381,-4385.3518149,0.00019077,2]
[360891969,1747119045392,-758.200933,0.00019077,2]
[360891970,1747119045403,-151.0,0.00019077,2]
[360891971,1747119045413,-151.0,0.00019077,2]
[360891972,1747119045424,-151.0,0.00019077,2]
[360891973,1747119045434,-1842.70930457,0.00019077,2]
[360891974,1747119045445,-50144.206174,0.000191,7]
[360891975,1747119045455,-151.0,0.000191,2]
[360891976,1747119045466,-151.0,0.000191,2]
[360891977,1747119045476,-151.0,0.000191,2]
[360891978,1747119045487,-151.0,0.000191,2]
[360891979,1747119045497,-151.0,0.000191,2]
[360891980,1747119045507,-151.0,0.000191,2]
[360891981,1747119045518,-151.0,0.000191,2]
[360891982,1747119045528,-151.0,0.000191,2]
[360891983,1747119045539,-151.0,0.000191,2]